Cogmind - Beta 13 @@@ ROGUE MODE // 2024.05.03 @ 17:00:59 // Winter2022/Polymind Player: Bace Troncons Result: Destroyed by B-75 Beast with Heavy Plasma Cannon Performance ------------- Evolutions (4) 2000 Regions Visited (7) 1400 Robots Destroyed (1) 5 Value Destroyed (34) 34 Prototype IDs (0) 0 Alien Tech Used (0) 0 Bonus (2010) 2010 TOTAL SCORE: 5329 Bonus ------- Polymind Skill 1810 Entered Garrisons 200 Cogmind --------- Core Integrity 0/850 Matter 0/0 Energy 99/100 System Corruption 0% Temperature Cool (12) Movement Core (50) Location -6/Factory Parts ------- > --- POWER (1) -------- (None) > --- PROPULSION (2) --- (None) > --- UTILITY (0) ------ (None) > --- WEAPON (1) ------- (None) > --- INVENTORY (0) ---- (None) Peak State ------------ > --- POWER ------------ Subdweller Power Source > --- PROPULSION ------- Subdweller Monowheel > --- UTILITY ---------- Disposable Heat Sink Subdweller Optics Scrap Shield > --- WEAPON ----------- Subdweller Machine Gun > --- INVENTORY -------- Scrap Shield Fragment [Rating: 14] Favorites ----------- Power Light Ion Engine Engine Light Ion Engine Propulsion Hover Unit Wheel Wheel Hover Unit Hover Unit Flight Unit Flight Unit Utility Disposable Heat Sink Device Disposable Heat Sink Hackware Hacking Suite Protection Scrap Shield Weapon Subdweller Machine Gun Ballistic Gun Subdweller Machine Gun Special Weapon Mining Laser Special Melee Weapon Datajack Build | -11 -10 -10 -10 -8 -7 -7 -6 ------- Run | Yrd Mat Min Sub Mat Fac Gar Fac Slots Evolved . | . . . . . . . . Power . | . . . . . . . . Propulsion . | . . . . . . . . Utility . | . . . . . . . . Weapon . | . . . . . . . . Parts Attached . | . . . . . . . . Power . | . . . . . . . . Engine . | . . . . . . . . Core . | . . . . . . . . Reactor . | . . . . . . . . Propulsion . | . . . . . . . . Treads . | . . . . . . . . Leg . | . . . . . . . . Wheel . | . . . . . . . . Hover . | . . . . . . . . Flight . | . . . . . . . . Utility . | . . . . . . . . Device . | . . . . . . . . Storage . | . . . . . . . . Processor . | . . . . . . . . Hackware . | . . . . . . . . Protection . | . . . . . . . . Artifact . | . . . . . . . . Weapon . | . . . . . . . . Energy Gun . | . . . . . . . . Energy Cannon . | . . . . . . . . Ballistic Gun . | . . . . . . . . Ballistic Cannon . | . . . . . . . . Launcher . | . . . . . . . . Special Weapon . | . . . . . . . . Impact Weapon . | . . . . . . . . Slashing Weapon . | . . . . . . . . Piercing Weapon . | . . . . . . . . Special Melee Weapon . | . . . . . . . . Unidentified Prototypes . | . . . . . . . . Parts Lost 3 | . . . 3 . . . . Power . | . . . . . . . . Propulsion 1 | . . . 1 . . . . Utility 2 | . . . 2 . . . . Weapon . | . . . . . . . . Highest Loss Streak 2 | . . . 2 . . . . To Critical Strikes . | . . . . . . . . Average Slot Usage (%) 58 | . 60 100 91 100 . 22 . Engine 11 | . 12 20 17 25 . 5 . Wheel 5 | . . . 15 . . . . Hover 6 | . 24 40 . . . . . Flight 8 | . . . 12 50 . 11 . Device 7 | . . . 22 . . . . Hackware 3 | . 12 20 . . . . . Protection 2 | . . . 6 . . . . Ballistic Gun 6 | . . . 12 25 . 5 . Special Weapon 1 | . . . 4 . . . . Special Melee Weapon 3 | . 12 20 . . . . . Naked Turns 276 | . 22 . 1 . . 74 179 Heaviest Build 30 | . 4 6 30 4 4 4 . Greatest Support 20 | 3 12 20 20 8 8 8 3 Greatest Overweight (x) 3 | . . . 3 . . . . Average Overweight (x) . | . . . . . . . . Largest Inventory Capacity 2 | . 1 1 2 . . . . Average Capacity . | . . . . . . . . Most Carried 1 | . . . 1 . . . . Average Carried . | . . . . . . . . Final Capacity 1 | . 1 . . . . . . Final Carried . | . . . . . . . . Class Distribution -------------------- 39% | Cogmind 17% | Subdweller 16% | Operator 16% | Swarmer 10% | Tunneler Dominant Class ---------------- Operator | -10/Materials Operator | -10/Mines Subdweller | -10/Subcaves Swarmer | -8/Materials Swarmer | -7/Factory Cogmind | -7/Garrison Cogmind | -6/Factory Resources | -11 -10 -10 -10 -8 -7 -7 -6 ----------- Run | Yrd Mat Min Sub Mat Fac Gar Fac Matter Collected 8 | . . . 8 . . . . Remotely . | . . . . . . . . Salvage Created 57 | . . . 57 . . . . Parts 2 | . . . 2 . . . . Haulers Intercepted . | . . . . . . . . Recyclers Shooed . | . . . . . . . . Parts Field Recycled . | . . . . . . . . Retrieved Matter . | . . . . . . . . Parts Self-Destructed 4 | . . . 4 . . . . Prevented . | . . . . . . . . Kills | -11 -10 -10 -10 -8 -7 -7 -6 ------- Run | Yrd Mat Min Sub Mat Fac Gar Fac Combat Hostiles Destroyed 1 | . . . 1 . . . . Guns 1 | . . . 1 . . . . Classes Destroyed 1 | . . . 1 . . . . Grunt 1 | . . . 1 . . . . Best Kill Streak 1 | . . . 1 . . . . Combat Bots Only 1 | . . . 1 . . . . Max Kills in Single Turn 1 | . . . 1 . . . . Gunslinging . | . . . . . . . . Exploded . | . . . . . . . . Melee . | . . . . . . . . Uniques/NPCs Destroyed . | . . . . . . . . Combat | -11 -10 -10 -10 -8 -7 -7 -6 -------- Run | Yrd Mat Min Sub Mat Fac Gar Fac Hostile Shots Fired 174 | . . . 61 . . 49 64 Missed 67 | . . . 18 . . 16 33 Damage Taken 1970 | . . . 572 . . 545 853 Core 1550 | . . . 152 . . 545 853 Absorbed by Shields 12 | . . . . . . 12 . Core Remaining (%) 65 | 100 . . 39 100 . 22 . Volleys Fired 12 | . . . 12 . . . . Largest 1 | . . . 1 . . . . Hottest 100 | . . . 100 . . . . Shots Fired 12 | . . . 12 . . . . Gun 11 | . . . 11 . . . . Cannon . | . . . . . . . . Launcher . | . . . . . . . . Special 1 | . . . 1 . . . . Kinetic 11 | . . . 11 . . . . Thermal 1 | . . . 1 . . . . Explosive . | . . . . . . . . Electromagnetic . | . . . . . . . . Robot Hit Streak 2 | . . . 2 . . . . Robot Miss Streak 3 | . . . 3 . . . . Penetration Max . | . . . . . . . . Secondary Targets . | . . . . . . . . Shots Hit Robots 8 | . . 3 5 . . . . Core Hits 4 | . . . 2 . . 1 1 Critical Kills . | . . . . . . . . Critical Parts Destroyed . | . . . . . . . . Critical Strikes . | . . . . . . . . Melee Attacks 3 | . . 3 . . . . . Impact . | . . . . . . . . Slashing . | . . . . . . . . Piercing . | . . . . . . . . Sneak Attacks 3 | . . 3 . . . . . Combat Hostiles . | . . . . . . . . Follow-up Attacks . | . . . . . . . . Damage Inflicted 147 | . . . 92 . . 26 29 Guns 92 | . . . 92 . . . . Cannons . | . . . . . . . . Explosions . | . . . . . . . . Melee . | . . . . . . . . Ramming 55 | . . . . . . 26 29 Kinetic 92 | . . . 92 . . . . Thermal . | . . . . . . . . Explosive . | . . . . . . . . Electromagnetic . | . . . . . . . . Impact . | . . . . . . . . Slashing . | . . . . . . . . Piercing . | . . . . . . . . Highest Corruption . | . . . . . . . . Average Corruption . | . . . . . . . . Corruption Purged . | . . . . . . . . Corruption Blocked . | . . . . . . . . Overload Shots . | . . . . . . . . Overflow Damage . | . . . . . . . . Projectiles . | . . . . . . . . Explosions . | . . . . . . . . Melee . | . . . . . . . . Knockbacks . | . . . . . . . . Impact . | . . . . . . . . Kinetic . | . . . . . . . . Secondary . | . . . . . . . . Self-Inflicted Damage 24 | . . . . . . 11 13 Shots . | . . . . . . . . Rammed 14 | . . . . . . 7 7 Targets Rammed 14 | . . . . . . 7 7 Kicked . | . . . . . . . . Crushed . | . . . . . . . . Highest Temperature 25 | . . . 25 . . 20 20 Average Temperature 9 | . . . 9 . . 8 20 Received Heat Transfer 582 | . . . 213 . . 189 180 Siege Activations . | . . . . . . . . Robots Corrupted . | . . . . . . . . Combat Hostiles . | . . . . . . . . Parts Fried . | . . . . . . . . Impact Corruptions . | . . . . . . . . Robots Melted . | . . . . . . . . Combat Hostiles . | . . . . . . . . Parts Melted . | . . . . . . . . Heat Transferred . | . . . . . . . . Parts Sabotaged . | . . . . . . . . Parts Stolen . | . . . . . . . . Parts Stripped . | . . . . . . . . Power Chain Reactions . | . . . . . . . . Alert | -11 -10 -10 -10 -8 -7 -7 -6 ------- Run | Yrd Mat Min Sub Mat Fac Gar Fac Peak Influence 281 | . 15 5 . . 4 107 281 Initial 56 | . . 5 . . . 2 56 Average 55 | . 9 4 . . . 28 124 Maximum Alert Level 1 | . . . . . . . 1 Low Security (%) 92 | 100 100 100 . 100 100 100 79 Level 1 7 | . . . . . . . 20 Level 2 . | . . . . . . . . Level 3 . | . . . . . . . . Level 4 . | . . . . . . . . Level 5 . | . . . . . . . . High Security . | . . . . . . . . Max Security . | . . . . . . . . Squads Dispatched 2 | . . . . . . . 2 Investigation 1 | . . . . . . . 1 Extermination . | . . . . . . . . Reinforcement 1 | . . . . . . . 1 Assault . | . . . . . . . . Garrison . | . . . . . . . . Intercept . | . . . . . . . . Searches Triggered . | . . . . . . . . Construction Impeded . | . . . . . . . . Haulers Reinforced . | . . . . . . . . Active Scanning Responses . | . . . . . . . . Cargo Convoy Interrupts . | . . . . . . . . Stealth | -11 -10 -10 -10 -8 -7 -7 -6 --------- Run | Yrd Mat Min Sub Mat Fac Gar Fac Distress Signals . | . . . . . . . . Communications Jammed . | . . . . . . . . Distress Signals . | . . . . . . . . Times Spotted 37 | . 1 . 10 . . 11 15 Peak Tracking Total 9 | . 1 . 3 . . 7 9 Tactical Retreats 4 | . . . . . . 2 2 Traps | -11 -10 -10 -10 -8 -7 -7 -6 ------- Run | Yrd Mat Min Sub Mat Fac Gar Fac Traps Triggered 1 | . . . . . . 1 . Indirectly . | . . . . . . . . Trap Hack Attempts 2 | . 2 . . . . . . Triggered . | . . . . . . . . Disarmed . | . . . . . . . . Reprogrammed . | . . . . . . . . Reused . | . . . . . . . . Traps Extracted . | . . . . . . . . Installed . | . . . . . . . . Triggered . | . . . . . . . . Machines | -11 -10 -10 -10 -8 -7 -7 -6 ---------- Run | Yrd Mat Min Sub Mat Fac Gar Fac Machines Disabled . | . . . . . . . . Max in Single Turn . | . . . . . . . . Machines Repaired . | . . . . . . . . Machines Dismantled . | . . . . . . . . Machines Sabotaged . | . . . . . . . . Overloaded Fab Kills . | . . . . . . . . Hacking | -11 -10 -10 -10 -8 -7 -7 -6 --------- Run | Yrd Mat Min Sub Mat Fac Gar Fac Machines Accessed 10 | . 3 . . . 1 1 5 Terminals 6 | . 3 . . . . 1 2 Fabricators 1 | . . . . . . . 1 Repair Stations . | . . . . . . . . Recycling Units 1 | . . . . . . . 1 Scanalyzers . | . . . . . . . . Garrison Access 2 | . . . . . 1 . 1 Total Hacks 20 | . 6 . . . 3 2 9 Successful 5 | . 2 . . . 1 . 2 Failed 15 | . 4 . . . 2 2 7 Catastrophic 3 | . 1 . . . . . 2 Database Lockouts . | . . . . . . . . Manual 1 | . 1 . . . . . . Terminals 10 | . 6 . . . . 2 2 Fabricators 1 | . . . . . . . 1 Repair Stations . | . . . . . . . . Recycling Units 3 | . . . . . . . 3 Scanalyzers . | . . . . . . . . Garrison Access 6 | . . . . . 3 . 3 Terminal Hacks 3 | . 2 . . . . . 1 Terminal Index 1 | . 1 . . . . . . Zone Layout 2 | . 1 . . . . . 1 Fabricator Hacks 1 | . . . . . . . 1 Network Status 1 | . . . . . . . 1 Repair Station Hacks . | . . . . . . . . Recycling Unit Hacks . | . . . . . . . . Scanalyzer . | . . . . . . . . Garrison Access Hacks 1 | . . . . . 1 . . Unlock Access 1 | . . . . . 1 . . Unauthorized Hacks . | . . . . . . . . Terminals . | . . . . . . . . Fabricators . | . . . . . . . . Repair Stations . | . . . . . . . . Recycling Units . | . . . . . . . . Scanalyzers . | . . . . . . . . Garrison Access . | . . . . . . . . Data Cores Recovered . | . . . . . . . . Used . | . . . . . . . . Hacking Detections 7 | . 2 . . . 1 1 3 Full Trace Events 1 | . . . . . . . 1 Feedback Events . | . . . . . . . . Feedback Blocked . | . . . . . . . . Robot Schematics Acquired . | . . . . . . . . Robots Built . | . . . . . . . . Authchips . | . . . . . . . . Time . | . . . . . . . . Total Robot Build Rating . | . . . . . . . . Part Schematics Acquired . | . . . . . . . . Parts Built . | . . . . . . . . Authchips . | . . . . . . . . Time . | . . . . . . . . Total Part Build Rating . | . . . . . . . . Parts Repaired . | . . . . . . . . Time . | . . . . . . . . Parts Recycled . | . . . . . . . . Recycled Matter . | . . . . . . . . Retrieved Matter . | . . . . . . . . Retrieved Components . | . . . . . . . . Parts Scanalyzed . | . . . . . . . . Part Schematics Acquired . | . . . . . . . . Parts Damaged . | . . . . . . . . Bothacking | -11 -10 -10 -10 -8 -7 -7 -6 ------------ Run | Yrd Mat Min Sub Mat Fac Gar Fac Used RIF Installer . | . . . . . . . . Robots Hacked 3 | . 1 1 1 . . . . Non-combat 2 | . 1 1 . . . . . Combat 1 | . . . 1 . . . . Robot Hacks Applied 3 | . 1 1 1 . . . . parse_system 1 | . . 1 . . . . . find_terminals 1 | . 1 . . . . . . find_shortcuts 1 | . . . 1 . . . . Relay Couplers Released . | . . . . . . . . Fabnet Peak Effective % . | . . . . . . . . Robots Rewired . | . . . . . . . . Allies Hacked . | . . . . . . . . Hacks Repelled . | . . . . . . . . Allies | -11 -10 -10 -10 -8 -7 -7 -6 -------- Run | Yrd Mat Min Sub Mat Fac Gar Fac Total Allies . | . . . . . . . . Largest Group . | . . . . . . . . Highest-Rated Group . | . . . . . . . . Highest-Rated Ally . | . . . . . . . . Total Orders . | . . . . . . . . Ally Attacks . | . . . . . . . . Total Damage . | . . . . . . . . Kills . | . . . . . . . . Allies Corrupted . | . . . . . . . . Allies Melted . | . . . . . . . . Intel | -11 -10 -10 -10 -8 -7 -7 -6 ------- Run | Yrd Mat Min Sub Mat Fac Gar Fac Robot Analysis Total 4 | . 1 1 2 . . . . Derelict Logs Recovered 1 | . . . 1 . . . . Drone Launches . | . . . . . . . . Drone Recoveries . | . . . . . . . . Exploration | -11 -10 -10 -10 -8 -7 -7 -6 ------------- Run | Yrd Mat Min Sub Mat Fac Gar Fac Turns Passed 712 | 14 48 95 248 35 7 86 179 Spaces Moved 1132 | 27 85 141 316 93 18 141 311 Core 496 | 27 41 1 7 . . 109 311 Treads . | . . . . . . . . Legs . | . . . . . . . . Wheels 154 | . . 5 149 . . . . Hover 179 | . 44 135 . . . . . Flight 303 | . . . 160 93 18 32 . Fastest Speed 37 | 50 50 50 37 37 37 37 50 Average Speed 54 | 50 53 56 69 37 37 47 50 Slowest Speed 200 | 50 56 80 200 37 37 50 50 Overloaded Moves . | . . . . . . . . Propulsion Burnouts . | . . . . . . . . Robots Hopped . | . . . . . . . . Cave-ins Triggered . | . . . . . . . . Exploration Rate (%) 19 | 3 25 32 35 14 1 37 12 Regions Visited 7 Branch Regions 2 Pre-discovered Areas . | . . . . . . . . Known Exits Taken 2 | . . . 1 . 1 . . Unknown Exits Taken 4 | 1 1 1 . 1 . . . Scrap Searched 1 | . . . 1 . . . . Spaces Dug . | . . . . . . . . Terrain Destroyed . | . . . . . . . . Melee . | . . . . . . . . Projectile . | . . . . . . . . AOE . | . . . . . . . . Terrain Rammed . | . . . . . . . . Walls Destroyed . | . . . . . . . . Machines Disabled . | . . . . . . . . Actions | -11 -10 -10 -10 -8 -7 -7 -6 --------- Run | Yrd Mat Min Sub Mat Fac Gar Fac Total 1198 | 26 87 154 328 92 17 160 334 Wait 27 | . 1 9 1 . . . 16 Move 1125 | 26 84 140 315 92 17 140 311 Hop . | . . . . . . . . Pick Up . | . . . . . . . . Fast Attach . | . . . . . . . . Attach . | . . . . . . . . Detach . | . . . . . . . . Swap . | . . . . . . . . Drop . | . . . . . . . . Fire 12 | . . . 12 . . . . Melee 3 | . . 3 . . . . . Ram 14 | . . . . . . 7 7 Kick . | . . . . . . . . Crush . | . . . . . . . . Escape Stasis 13 | . . . . . . 13 . Rewire . | . . . . . . . . Trap 2 | . 2 . . . . . . Miscellaneous 2 | . . 2 . . . . . Route ------- -11/Scrapyard -10/Materials -10/Mines -10/Subcaves -8/Materials -7/Factory -7/Garrison -6/Factory History --------- Turn | Location | Event 3 | -11/Scrapyard | Discovered new exit (range 15) 15 | -11/Scrapyard | Entered Materials 55 | -10/Materials | Discovered new exit (range 16) 63 | -10/Materials | Entered Mines 87 | -10/Mines | Received a Rocket Launcher from a helpful Derelict 122 | -10/Mines | Met a Derelict bent on vengeance 157 | -10/Mines | Discovered new exit (range 3) 158 | -10/Mines | Entered Subcaves 159 | -10/Subcaves | Shifting Twisted Machinery released Flamer 171 | -10/Subcaves | Identified exit to Materials 343 | -10/Subcaves | Core integrity fell below 50% 406 | -10/Subcaves | Entered Materials 439 | -8/Materials | Discovered new exit (range 4) 441 | -8/Materials | Entered Factory 447 | -7/Factory | Identified exit to Garrison 448 | -7/Factory | Entered Garrison 458 | -7/Garrison | Triggered checkpoint 514 | -7/Garrison | Triggered checkpoint 515 | -7/Garrison | Core integrity fell below 50% 529 | -7/Garrison | Discovered new exit (range 12) 534 | -7/Garrison | Entered Factory 695 | -6/Factory | Spotted B-75 Beast 701 | -6/Factory | Core integrity fell below 50% 701 | -6/Factory | Core integrity fell below 20% 713 | -6/Factory | Destroyed by B-75 Beast with Heavy Plasma Cannon Last Messages --------------- 00644_ U-05 Engineer builds a Door. 00664_ Connecting with Garrison Access... 00664_ ALERT: Suspicious activity at Garrison Access F002. Dispatching Investigation squad. 00688_ Slammed into U-05 Engineer. 00700_ Power Conduit explodes. 00700_ U-05 Engineer destroyed. 00700_ Power Conduit explodes. 00700_ Fabricator disabled. 00700_ Power Conduit explodes. 00700_ K-01 Serf destroyed. 00700_ Knocked back. 00700_ K-01 Serf collects debris. 00701_ Slammed into B-75 Beast. 00703_ Knocked back. 00703_ K-01 Serf collects debris. 00704_ ALERT: Hostiles spotted, dispatching reinforcements to Terminal F014. 00705_ U-05 Engineer builds a Wall. 00711_ U-05 Engineer lays Concrete. Map ----- +----------------------------------------------------+ | ?????????????????????????????????????????????????? | | ?????????????????????????????????????????????????? | | ?????????????????????????????????????????????????? | | ?????????????????????????????????????????????????? | | ?????????????????????????????????????????????????? | | ?????????????????????????????????????????????????? | | ????????????????????? ???????????????????????? | | ??????????????????? ?????????????????????? | | ???????????????? ??????????????????? | | ?????????????? ????????????????? | | ???????????? ??????????????? | | ????????????" ?????????????? | | ??????????? " u ????????????? | | ??????????? " u u ???????????? | | ??????????? " ??????????? | | ??????????? " ??????????? | | ?????????# " ;##??????????? | | ?????????# " ; #??????????? | | ?????????# " !! ; #??????????? | | ?????????# " ! ; #??????????? | | ?????????# ! " #??????????? | | ?????????# t "#???????????? | | ?????????# % "#???????????? | | ?????????# % BB "#### ???????? | | ?????????# BB ; / ??????? | | ?????????# !! !! ##;@# ##???????????? | | ?????????# !! !! ## # #????????????? | | ?????????+ ### # #????????????? | | ?????????# #?### #????????????? | | ?????????# #???# ] =!!#????????????? | | ?????????## #######+####### !! #????????????? | | ??????????#??# # * !! #????????????? | | ?????????????# """ ###########????????????? | | ?????????????# "Y #??????????????????????? | | ?????????????# """ """" #??????????????????????? | | ?????????????# """" #??????????????????????? | | ??????????? ?# """" #??????????????????????? | | ??????????? ?# """" #??????????????????????? | | ??????????# ?+ """" #??????????????????????? | | ??????????# ?# """" #??????????????????????? | | ??????????# ?# * """" #??????????????????????? | | ??????????# ?# #??????????????????????? | | ??????????# ?# #??????????????????????? | | ??????????# ##+####+#####+#??????????????????????? | | ??????????# #??# #????????????????????????????? | | ??????????# #??# #????????????????????????????? | | ???????#### #### #### #?????????????????????? | | ???????# T +?????????????????????? | | ???????# ### #?????????????????????? | | ???????# #???????????????????????????? | +----------------------------------------------------+ Best States ------------- Heat Dissipation 28 Coolant Potential 50 Energy Generation 20 Energy Capacity 150 Matter Stores 100 Matter Capacity 100 Sight Range 19 Terrain Scan Range 16 Terrain Scan Density 10 Armor Coverage 800 Evasion (%) 62 Offensive Hacking 10 Item Schematics ----------------- None Robot Schematics ------------------ None Fabricated ------------ Nothing Alien Tech Used ----------------- None Achievements -------------- None Challenges ------------ None Polymind | -11 -10 -10 -10 -8 -7 -7 -6 ---------- Run | Yrd Mat Min Sub Mat Fac Gar Fac Hosts 4 | . 1 1 2 . . . . Combat Hostiles 2 | . . . 2 . . . . Allies . | . . . . . . . . Unique Host Classes 4 | . 1 1 2 . . . . Average Host Suspicion 42 | . 3 38 52 26 3 9 . Unsuspicious Activity 40 | . 12 12 16 . . . . Returns to Shadow . | . . . . . . . . Fuzzy Dispatches . | . . . . . . . . Protomatter Created . | . . . . . . . . Used 49 | . 5 5 39 . . . . Decayed . | . . . . . . . . Highest Spend 33 | . 5 5 33 . . . . Top 5 Hosts by Kills: M7-XHD(R) (-10/Subcaves: 1) Game ------ Seed ArcCooledScreen Manual? 0 Play Time 00:20:55 Cumulative 51.9 hours Start 2024.05.03 @ 07:54:16 End 2024.05.03 @ 17:00:59 Sessions 3 Manual Loads 0 Difficulty Rogue Special Mode Winter2022/Polymind Game No. 78 Rogue 78 Adventurer 0 Explorer 0 Win Type - Total 0 Types 0/0/0/0/0/0/0/0/0 Lore% 26 Gallery% 35 Achievement% 27 Wizard Run 0 Options --------- Layout 1 ASCII 0 Keyboard 1 Movement Numpad Keybinds 0 Fullscreen 1 Font 24/Smallcaps Map View 50x35 Zoom Use 0% Tactical HUD 1 Map Filters NONE Filters NONE Steam 1 RUN: cfd5de9c-7464-4101-b060-5cc1a6251930